fUST/lending_fUST_20250530
["ID","MTS","AMOUNT","RATE_DAILY","PERIOD"]
[363086315,1748572249212,-430.0,0.00019726,2]
[363086316,1748572249222,-430.0,0.00019726,2]
[363086317,1748572249232,-433.48899906,0.00019726,2]
[363086318,1748572249242,-430.0,0.00019726,2]
[363086319,1748572249252,-430.0,0.00019726,2]
[363086320,1748572249262,-430.0,0.00019726,2]
[363086321,1748572249271,-430.0,0.00019726,2]
[363086322,1748572249281,-358.08608637,0.00019726,2]
[363086323,1748572249291,-549.43584037,0.00019726,2]
[363086324,1748572249301,-430.0,0.00019726,2]
[363086325,1748572249312,-430.0,0.00019726,2]
[363086326,1748572249321,-348.33069632,0.00019726,2]
[363086327,1748572249332,-430.0,0.00019726,2]
[363086328,1748572249341,-390.0,0.00019726,2]
[363086329,1748572249351,-370.0,0.00019726,2]
[363086330,1748572249360,-343.21201325,0.00019726,2]
[363086331,1748572249370,-430.0,0.00019726,2]
[363086332,1748572249380,-430.0,0.00019726,2]
[363086333,1748572249390,-430.0,0.00019726,2]
[363086334,1748572249400,-430.0,0.00019726,2]
[363086335,1748572249410,-430.0,0.00019726,2]
[363086336,1748572249419,-370.0,0.00019726,2]
[363086337,1748572249428,-182.62799631,0.00019726,2]
[363086338,1748572249437,-430.0,0.00019726,2]
[363086339,1748572249447,-435.77985755,0.00019726,2]
[363086340,1748572249456,-430.0,0.00019726,2]
[363086341,1748572249465,-430.0,0.00019726,2]
[363086342,1748572249475,-323.222834,0.00019726,2]
[363086343,1748572249484,-447.8975761,0.00019726,2]
[363086344,1748572249493,-430.0,0.00019726,2]
[363086345,1748572249502,-323.222834,0.00019726,2]
[363086346,1748572249512,-430.0,0.00019726,2]
[363086347,1748572249521,-430.0,0.00019726,2]
[363086348,1748572249531,-430.0,0.00019726,2]
[363086349,1748572249540,-377.9699378,0.00019726,2]
[363086350,1748572249550,-151.0,0.00019726,2]
[363086351,1748572249560,-437.25979612,0.00019726,2]
[363086352,1748572249570,-151.0,0.00019726,2]
[363086353,1748572249579,-430.0,0.00019726,2]
[363086354,1748572249588,-383.79044497,0.00019726,2]
[363086355,1748572249599,-479.49453095,0.00019726,2]
[363086356,1748572249608,-457.57899069,0.00019726,2]
[363086357,1748572249618,-453.87303344,0.00019726,2]
[363086358,1748572249628,-430.0,0.00019726,2]
[363086359,1748572249637,-430.0,0.00019726,2]
[363086360,1748572249646,-430.0,0.00019726,2]
[363086361,1748572249657,-430.0,0.00019726,2]
[363086362,1748572249666,-430.0,0.00019726,2]
[363086363,1748572249676,-322.42674208,0.00019726,2]
[363086364,1748572249685,-370.0,0.00019726,2]
[363086365,1748572249697,-181.02584977,0.00019726,2]
[363086366,1748572249706,-510.17829308,0.00019726,2]
[363086367,1748572249715,-151.0,0.00019726,2]
[363086368,1748572249724,-444.11546178,0.00019726,2]
[363086369,1748572249734,-151.912082,0.00019726,2]
[363086370,1748572249744,-430.0,0.00019726,2]
[363086371,1748572249753,-430.0,0.00019726,2]
[363086372,1748572249763,-415.40300432,0.00019726,2]
[363086373,1748572249773,-625.168653,0.00019726,2]
[363086374,1748572249785,-430.0,0.00019726,2]
[363086375,1748572249794,-151.0,0.00019726,2]
[363086376,1748572249804,-151.0,0.00019726,2]
[363086377,1748572249813,-151.0,0.00019726,2]
[363086378,1748572249823,-430.0,0.00019726,2]
[363086379,1748572249832,-151.0,0.00019726,2]
[363086380,1748572249842,-430.0,0.00019726,2]
[363086381,1748572249851,-167.195699,0.00019726,2]
[363086382,1748572249860,-167.195699,0.00019726,2]
[363086383,1748572249870,-430.0,0.00019726,2]
[363086384,1748572249879,-430.0,0.00019726,2]
[363086385,1748572249889,-430.0,0.00019726,2]
[363086386,1748572249898,-387.21341055,0.00019726,2]
[363086387,1748572249908,-430.0,0.00019726,2]
[363086388,1748572249917,-151.0,0.00019726,2]
[363086389,1748572249927,-430.0,0.00019726,2]
[363086390,1748572249936,-436.17980682,0.00019726,2]
[363086391,1748572249945,-430.0,0.00019726,2]
[363086392,1748572249954,-430.0,0.00019726,2]
[363086393,1748572249963,-430.0,0.00019726,2]
[363086394,1748572249972,-151.0,0.00019726,2]
[363086395,1748572249981,-151.0,0.00019726,2]
[363086396,1748572250094,-430.0,0.00019726,2]
[363086397,1748572250104,-151.0,0.00019726,2]
[363086398,1748572250114,-202.99714916,0.00019726,2]
[363086399,1748572250123,-435.38822028,0.00019726,2]
[363086400,1748572250133,-430.0,0.00019726,2]
[363086401,1748572250142,-270.014028,0.00019726,2]
[363086402,1748572250152,-430.0,0.00019726,2]
[363086403,1748572250162,-430.0,0.00019726,2]
[363086404,1748572250171,-350.07224278,0.00019726,2]
[363086405,1748572250181,-430.0,0.00019726,2]
[363086406,1748572250190,-442.86245648,0.00019726,2]
[363086407,1748572250200,-413.00019899,0.00019726,2]
[363086408,1748572250209,-430.0,0.00019726,2]
[363086409,1748572250219,-2316.582909,0.00019726,2]
[363086410,1748572250228,-2316.582909,0.00019726,2]
[363086411,1748572250237,-590.03,0.00019726,2]
[363086412,1748572250247,-441.09908079,0.00019726,2]
[363086413,1748572250256,-430.0,0.00019726,2]
[363086414,1748572250266,-541.81164189,0.00019726,2]
[363086415,1748572250275,-203.35834661,0.00019726,2]
[363086416,1748572250285,-430.0,0.00019726,2]
[363086417,1748572250295,-439.20907439,0.00019726,2]
[363086418,1748572250305,-544.75,0.00019726,2]
[363086419,1748572250314,-443.08032513,0.00019726,2]
[363086421,1748572250323,-441.72556299,0.00019726,2]
[363086422,1748572250333,-430.0,0.00019726,2]
[363086423,1748572250343,-430.0,0.00019726,2]
[363086424,1748572250352,-511.01773851,0.00019726,2]
[363086425,1748572250363,-430.0,0.00019726,2]
[363086426,1748572250373,-430.0,0.00019726,2]
[363086427,1748572250383,-430.0,0.00019726,2]
[363086428,1748572250393,-430.0,0.00019726,2]
[363086429,1748572250403,-151.0,0.00019726,2]
[363086430,1748572250414,-180.740501,0.00019726,2]
[363086432,1748572250424,-180.740501,0.00019726,2]
[363086434,1748572250433,-430.0,0.00019726,2]
[363086436,1748572250443,-444.06497688,0.00019726,2]
[363086438,1748572250452,-430.0,0.00019726,2]
[363086440,1748572250462,-430.0,0.00019726,2]
[363086442,1748572250471,-430.0,0.00019726,2]
[363086444,1748572250480,-430.0,0.00019726,2]
[363086446,1748572250490,-430.0,0.00019726,2]
[363086448,1748572250499,-430.0,0.00019726,2]
[363086450,1748572250509,-731.502552,0.00019726,2]
[363086452,1748572250519,-731.502552,0.00019726,2]
[363086454,1748572250528,-430.0,0.00019726,2]
[363086456,1748572250538,-430.0,0.00019726,2]
[363086458,1748572250548,-1701.04,0.00019726,2]
[363086460,1748572250558,-455.86295154,0.00019726,2]
[363086462,1748572250567,-430.0,0.00019726,2]
[363086464,1748572250577,-430.0,0.00019726,2]
[363086466,1748572250586,-989.49,0.00019726,2]
[363086468,1748572250596,-430.0,0.00019726,2]
[363086470,1748572250605,-437.66838658,0.00019726,2]
[363086472,1748572250615,-430.0,0.00019726,2]
[363086474,1748572250624,-430.0,0.00019726,2]
[363086476,1748572250633,-430.0,0.00019726,2]
[363086478,1748572250642,-430.0,0.00019726,2]
[363086480,1748572250651,-430.0,0.00019726,2]
[363086482,1748572250661,-457.84,0.00019726,2]
[363086484,1748572250670,-305.201031,0.00019726,2]
[363086486,1748572250679,-430.0,0.00019726,2]
[363086488,1748572250688,-305.201031,0.00019726,2]
[363086490,1748572250705,-430.0,0.00019726,2]
[363086492,1748572250714,-668.64,0.00019726,2]
[363086494,1748572250722,-446.39165999,0.00019726,2]
[363086496,1748572250732,-430.0,0.00019726,2]
[363086498,1748572250742,-477.42,0.00019726,2]
[363086500,1748572250751,-151.0,0.00019726,2]
[363086502,1748572250761,-430.0,0.00019726,2]
[363086504,1748572250772,-430.0,0.00019726,2]
[363086506,1748572250782,-325.5167343,0.00019726,2]
[363086508,1748572250791,-174.69054645,0.00019726,2]
[363086510,1748572250800,-458.86,0.00019726,2]
[363086512,1748572250811,-430.0,0.00019726,2]
[363086514,1748572250820,-1307.48,0.00019726,2]
[363086516,1748572250829,-1770.07,0.00019726,2]
[363086518,1748572250842,-430.0,0.00019726,2]
[363086520,1748572250851,-430.0,0.00019726,2]
[363086522,1748572250861,-475.30041474,0.00019726,2]
[363086524,1748572250870,-430.0,0.00019726,2]
[363086526,1748572250879,-444.35163942,0.00019726,2]
[363086528,1748572250888,-430.0,0.00019726,2]
[363086530,1748572250899,-476.68554439,0.00019726,2]
[363086532,1748572250908,-430.0,0.00019726,2]
[363086534,1748572250918,-2734.81,0.00019726,2]
[363086536,1748572250927,-425.4328462,0.00019726,2]
[363086538,1748572250936,-437.75766194,0.00019726,2]
[363086540,1748572250946,-552.21,0.00019726,2]
[363086542,1748572250955,-445.52197514,0.00019726,2]
[363086544,1748572250965,-430.0,0.00019726,2]
[363086546,1748572250974,-430.0,0.00019726,2]
[363086548,1748572250984,-452.83495075,0.00019726,2]
[363086550,1748572250994,-459.01,0.00019726,2]
[363086552,1748572251003,-434.38194584,0.00019726,2]
[363086554,1748572251013,-402.07658333,0.00019726,2]
[363086556,1748572251023,-430.0,0.00019726,2]
[363086558,1748572251032,-430.0,0.00019726,2]
[363086560,1748572251042,-430.0,0.00019726,2]
[363086562,1748572251051,-4126.55,0.00019726,2]
[363086564,1748572251062,-430.0,0.00019726,2]
[363086566,1748572251071,-430.0,0.00019726,2]
[363086568,1748572251081,-430.0,0.00019726,2]
[363086570,1748572251090,-431.66243708,0.00019726,2]
[363086572,1748572251100,-617.297972,0.00019726,2]
[363086574,1748572251109,-430.0,0.00019726,2]
[363086577,1748572251119,-430.0,0.00019726,2]
[363086579,1748572251128,-430.0,0.00019726,2]
[363086580,1748572251138,-617.297972,0.00019726,2]
[363086582,1748572251147,-430.0,0.00019726,2]
[363086584,1748572251156,-430.0,0.00019726,2]
[363086586,1748572251166,-430.0,0.00019726,2]
[363086588,1748572251175,-438.27894563,0.00019726,2]
[363086590,1748572251185,-440.69434476,0.00019726,2]
[363086592,1748572251194,-440.84510904,0.00019726,2]
[363086594,1748572251203,-464.57151537,0.00019726,2]
[363086596,1748572251212,-466.94468156,0.00019726,2]
[363086598,1748572251221,-151.0,0.00019726,2]
[363086600,1748572251231,-430.0,0.00019726,2]
[363086602,1748572251240,-430.0,0.00019726,2]
[363086604,1748572251250,-430.0,0.00019726,2]
[363086606,1748572251259,-430.0,0.00019726,2]
[363086608,1748572251269,-151.656534,0.00019726,2]
[363086611,1748572251280,-511.12,0.00019726,2]
[363086613,1748572251291,-319.826373,0.00019726,2]
[363086614,1748572251300,-430.0,0.00019726,2]
[363086616,1748572251312,-430.0,0.00019726,2]
[363086617,1748572251322,-430.0,0.00019726,2]
[363086618,1748572251331,-319.826373,0.00019726,2]
[363086619,1748572251339,-430.0,0.00019726,2]
[363086620,1748572251348,-430.0,0.00019726,2]
[363086621,1748572251358,-550.68,0.00019726,2]
[363086622,1748572251366,-430.0,0.00019726,2]
[363086623,1748572251375,-1958.04,0.00019726,2]
[363086624,1748572251384,-2659.21,0.00019726,2]
[363086625,1748572251392,-1164.09,0.00019726,2]
[363086626,1748572251401,-3842.32,0.00019726,2]
[363086627,1748572251410,-430.0,0.00019726,2]
[363086628,1748572251420,-476.96,0.00019726,2]
[363086629,1748572251429,-430.0,0.00019726,2]
[363086630,1748572251438,-430.0,0.00019726,2]
[363086631,1748572251447,-430.0,0.00019726,2]
[363086632,1748572251456,-694.82517684,0.00019726,2]
[363086633,1748572251464,-430.0,0.00019726,2]
[363086634,1748572251473,-655.8,0.00019726,2]
[363086635,1748572251482,-151.0,0.00019726,2]
[363086636,1748572251491,-430.0,0.00019726,2]
[363086637,1748572251500,-430.0,0.00019726,2]
[363086638,1748572251509,-2404.75,0.00019726,2]
[363086639,1748572251518,-430.0,0.00019726,2]
[363086640,1748572251527,-287.970189,0.00019726,2]
[363086641,1748572251536,-430.0,0.00019726,2]
[363086642,1748572251545,-373.16275702,0.00019726,2]
[363086643,1748572251556,-558.75,0.00019726,2]
[363086644,1748572251566,-430.0,0.00019726,2]
[363086645,1748572251576,-464.28194219,0.00019726,2]
[363086646,1748572251585,-1142.34,0.00019726,2]
[363086647,1748572251594,-979.18,0.00019726,2]
[363086648,1748572251604,-673.14,0.00019726,2]
[363086650,1748572251614,-430.0,0.00019726,2]
[363086652,1748572251624,-430.0,0.00019726,2]
[363086654,1748572251633,-430.0,0.00019726,2]
[363086656,1748572251643,-446.98836196,0.00019726,2]
[363086658,1748572251652,-582.41,0.00019726,2]
[363086660,1748572251663,-430.0,0.00019726,2]
[363086661,1748572251673,-430.0,0.00019726,2]
[363086663,1748572251682,-430.0,0.00019726,2]
[363086665,1748572251696,-430.0,0.00019726,2]
[363086667,1748572251706,-430.0,0.00019726,2]
[363086669,1748572251716,-430.0,0.00019726,2]
[363086670,1748572251725,-430.0,0.00019726,2]
[363086671,1748572251735,-430.0,0.00019726,2]
[363086672,1748572251744,-151.0,0.00019726,2]
[363086673,1748572251754,-430.0,0.00019726,2]
[363086675,1748572251764,-984.09,0.00019726,2]
[363086677,1748572251774,-430.0,0.00019726,2]
[363086678,1748572251783,-430.0,0.00019726,2]
[363086679,1748572251792,-449.37270301,0.00019726,2]
[363086680,1748572251801,-151.0,0.00019726,2]
[363086681,1748572251812,-430.0,0.00019726,2]
[363086682,1748572251823,-430.0,0.00019726,2]
[363086683,1748572251832,-430.0,0.00019726,2]
[363086684,1748572251841,-430.0,0.00019726,2]
[363086685,1748572251851,-430.0,0.00019726,2]
[363086686,1748572251861,-430.0,0.00019726,2]
[363086688,1748572251870,-430.0,0.00019726,2]
[363086690,1748572251880,-430.0,0.00019726,2]
[363086692,1748572251890,-439.99484291,0.00019726,2]
[363086694,1748572251900,-430.0,0.00019726,2]
[363086696,1748572251909,-430.0,0.00019726,2]
[363086698,1748572251918,-430.0,0.00019726,2]
[363086700,1748572251927,-500.16,0.00019726,2]
[363086702,1748572251938,-1160.99,0.00019726,2]
[363086704,1748572251948,-588.487475,0.00019726,2]
[363086706,1748572251958,-475.31,0.00019726,2]
[363086708,1748572251967,-588.487475,0.00019726,2]
[363086710,1748572251976,-430.0,0.00019726,2]
[363086712,1748572251986,-247.766992,0.00019726,2]
[363086714,1748572251995,-430.0,0.00019726,2]
[363086716,1748572252005,-430.0,0.00019726,2]
[363086718,1748572252014,-247.766992,0.00019726,2]
[363086720,1748572252023,-151.0,0.00019726,2]
[363086722,1748572252032,-430.0,0.00019726,2]
[363086724,1748572252042,-430.0,0.00019726,2]
[363086726,1748572252051,-430.0,0.00019726,2]
[363086728,1748572252061,-430.0,0.00019726,2]
[363086730,1748572252070,-430.0,0.00019726,2]
[363086732,1748572252079,-1870.6,0.00019726,2]
[363086734,1748572252089,-437.28935855,0.00019726,2]
[363086736,1748572252098,-1018.18213233,0.00019726,2]
[363086738,1748572252107,-430.0,0.00019726,2]
[363086740,1748572252116,-430.0,0.00019726,2]
[363086741,1748572252125,-667.99,0.00019726,2]
[363086743,1748572252135,-430.0,0.00019726,2]
[363086745,1748572252144,-505.75232097,0.00019726,2]
[363086749,1748572252243,-430.0,0.00019726,2]
[363086751,1748572252253,-430.0,0.00019726,2]
[363086753,1748572252263,-430.0,0.00019726,2]
[363086755,1748572252272,-430.0,0.00019726,2]
[363086757,1748572252282,-430.0,0.00019726,2]
[363086759,1748572252292,-430.0,0.00019726,2]
[363086761,1748572252301,-430.0,0.00019726,2]
[363086763,1748572252311,-430.0,0.00019726,2]
[363086765,1748572252320,-729.73,0.00019726,2]
[363086767,1748572252329,-430.0,0.00019726,2]
[363086769,1748572252339,-430.0,0.00019726,2]
[363086771,1748572252348,-2839.9,0.00019726,2]
[363086773,1748572252357,-430.0,0.00019726,2]
[363086775,1748572252368,-430.0,0.00019726,2]
[363086777,1748572252378,-430.0,0.00019726,2]
[363086779,1748572252387,-430.0,0.00019726,2]
[363086781,1748572252396,-430.0,0.00019726,2]
[363086782,1748572252406,-430.0,0.00019726,2]
[363086784,1748572252416,-2425.45,0.00019726,2]
[363086786,1748572252425,-430.0,0.00019726,2]
[363086788,1748572252434,-398.82072898,0.00019726,2]
[363086790,1748572252443,-430.0,0.00019726,2]
[363086792,1748572252452,-1396.39216755,0.00019728,2]
[363086794,1748572252461,-428.67864138,0.00019741,2]
[363086796,1748572252470,-800.0,0.00019742,2]
[363086798,1748572252480,-587.0,0.00019824,2]
[363086800,1748572252492,-151.0,0.00019824,2]
[363086802,1748572252501,-151.0,0.00019824,2]
[363086804,1748572252511,-247.766992,0.00019824,2]
[363086806,1748572252520,-247.766992,0.00019824,2]
[363086808,1748572252529,-188.8045275,0.00019836,2]
[363086810,1748572252539,-767.01,0.00019839,2]
[363086812,1748572252548,-739.76767212,0.00019848,2]
[363086814,1748572252557,-541.84057178,0.00019928,2]
[363086816,1748572252567,-1396.39216755,0.00019934,2]
[363086818,1748572252576,-700.0,0.00019964,2]
[363086820,1748572252591,-370.2372992,0.00019973,2]
[363086822,1748572252600,-364.176416,0.00019973,2]
[363086824,1748572252610,-363.3436958,0.00019973,2]
[363086826,1748572252619,-501.66807796,0.00019973,2]
[363086828,1748572252628,-189.63934213,0.00019973,2]
[363086830,1748572252637,-511.35442707,0.00019973,2]
[363086832,1748572252646,-500.56136787,0.00019973,2]
[363086834,1748572252655,-501.78316529,0.00019973,2]
[363086836,1748572252664,-500.31817662,0.00019973,2]
[363086837,1748572252673,-500.0,0.00019973,2]
[363086839,1748572252682,-171.34321119,0.00019973,2]
[363086841,1748572252691,-500.49838301,0.00019973,2]
[363086843,1748572252704,-500.0,0.00019973,2]
[363086846,1748572252713,-500.0,0.00019973,2]
[363086848,1748572252723,-500.0,0.00019973,2]
[363086849,1748572252732,-500.0,0.00019973,2]
[363086852,1748572252742,-500.71541538,0.00019973,2]
[363086854,1748572252752,-151.3163909,0.00019973,2]
[363086856,1748572252761,-300.20927747,0.00019973,2]
[363086858,1748572252770,-500.5672481,0.00019973,2]
[363086860,1748572252780,-500.74863531,0.00019973,2]
[363086862,1748572252789,-166.52674738,0.00019973,2]
[363086864,1748572252798,-501.23994243,0.00019973,2]
[363086866,1748572252807,-305.20464989,0.00019973,2]
[363086867,1748572252816,-500.99701579,0.00019973,2]
[363086869,1748572252825,-501.93473979,0.00019973,2]
[363086871,1748572252834,-597.39684857,0.00019973,2]
[363086873,1748572252844,-500.94701648,0.00019973,2]
[363086875,1748572252854,-439.46350087,0.00019973,2]
[363086877,1748572252863,-501.32202643,0.00019973,2]
[363086879,1748572252873,-500.38437342,0.00019973,2]
[363086881,1748572252882,-501.61138456,0.00019973,2]
[363086883,1748572252891,-152.43632746,0.00019973,2]
[363086885,1748572252900,-502.84354349,0.00019973,2]
[363086887,1748572252909,-500.0,0.00019973,2]
[363086889,1748572252919,-500.51007255,0.00019973,2]
[363086891,1748572252928,-502.20784139,0.00019973,2]
[363086893,1748572252937,-501.36220263,0.00019973,2]
[363086895,1748572252947,-500.0,0.00019973,2]
[363086897,1748572252957,-600.0,0.00019973,2]
[363086899,1748572252966,-500.0,0.00019973,2]
[363086901,1748572252975,-501.85733372,0.00019973,2]
[363086903,1748572252984,-500.97867718,0.00019973,2]
[363086905,1748572252994,-503.83361993,0.00019973,2]
[363086907,1748572253003,-501.43883291,0.00019973,2]
[363086909,1748572253012,-7074.97435657,0.00019999,3]
[363086910,1748572253021,-92775.57406398,0.00019999,2]
[363086911,1748572253030,-1751.90815294,0.0002,2]
[363086912,1748572253040,-35481.53748151,0.0002,2]
[363086913,1748572253049,-1153.0,0.0002,2]
[363086914,1748572253059,-502.0,0.0002,2]
[363086915,1748572253068,-151.0,0.0002,2]
[363086916,1748572253076,-151.0,0.0002,2]
[363086917,1748572253086,-259.244812,0.0002,2]
[363086918,1748572253095,-856.196143,0.0002,2]
[363086919,1748572253104,-856.196143,0.0002,2]
[363086920,1748572253114,-151.0,0.0002,2]
[363086921,1748572253123,-152.476461,0.0002,2]
[363086922,1748572253133,-151.0,0.0002,2]
[363086923,1748572253142,-151.0,0.0002,2]
[363086924,1748572253158,-151.0,0.0002,2]
[363086925,1748572253168,-430.0,0.0002,2]
[363086926,1748572253177,-151.0,0.0002,2]
[363086927,1748572253186,-430.0,0.0002,2]
[363086928,1748572253195,-430.0,0.0002,2]
[363086929,1748572253205,-438.89407559,0.0002,2]
[363086930,1748572253214,-430.0,0.0002,2]
[363086931,1748572253225,-430.0,0.0002,2]
[363086932,1748572253234,-430.0,0.0002,2]
[363086933,1748572253244,-430.0,0.0002,2]
[363086934,1748572253253,-374.57867436,0.0002,2]
[363086935,1748572253264,-430.0,0.0002,2]
[363086936,1748572253274,-430.0,0.0002,2]
[363086937,1748572253283,-370.0,0.0002,2]
[363086938,1748572253293,-400.0,0.0002,2]
[363086939,1748572253302,-340.0,0.0002,2]
[363086940,1748572253312,-430.0,0.0002,2]
[363086941,1748572253322,-323.222834,0.0002,2]
[363086942,1748572253332,-323.222834,0.0002,2]
[363086943,1748572253341,-430.0,0.0002,2]
[363086944,1748572253351,-430.0,0.0002,2]
[363086945,1748572253360,-439.94047747,0.0002,2]
[363086946,1748572253370,-151.0,0.0002,2]
[363086947,1748572253380,-151.0,0.0002,2]
[363086948,1748572253390,-430.0,0.0002,2]
[363086949,1748572253399,-151.0,0.0002,2]
[363086950,1748572253409,-430.0,0.0002,2]
[363086951,1748572253419,-430.0,0.0002,2]
[363086952,1748572253428,-288.74201289,0.0002,2]
[363086953,1748572253439,-444.74622878,0.0002,2]
[363086954,1748572253448,-430.0,0.0002,2]
[363086955,1748572253458,-151.0,0.0002,2]
[363086956,1748572253468,-152.165232,0.0002,2]
[363086957,1748572253477,-151.0,0.0002,2]
[363086958,1748572253487,-151.0,0.0002,2]
[363086959,1748572253496,-430.0,0.0002,2]
[363086960,1748572253505,-430.0,0.0002,2]
[363086961,1748572253515,-625.168653,0.0002,2]
[363086962,1748572253524,-473.28790326,0.0002,2]
[363086963,1748572253533,-151.0,0.0002,2]
[363086964,1748572253543,-151.0,0.0002,2]
[363086965,1748572253553,-151.0,0.0002,2]
[363086966,1748572253564,-430.0,0.0002,2]
[363086967,1748572253574,-151.0,0.0002,2]
[363086968,1748572253583,-167.195699,0.0002,2]
[363086969,1748572253592,-167.195699,0.0002,2]
[363086970,1748572253602,-329.67092726,0.0002,2]
[363086971,1748572253612,-452.38590288,0.0002,2]
[363086972,1748572253622,-441.86947749,0.0002,2]
[363086973,1748572253632,-430.0,0.0002,2]
[363086974,1748572253642,-151.0,0.0002,2]
[363086975,1748572253651,-430.0,0.0002,2]
[363086976,1748572253660,-430.0,0.0002,2]
[363086977,1748572253670,-430.0,0.0002,2]
[363086978,1748572253680,-430.0,0.0002,2]
[363086979,1748572253690,-151.0,0.0002,2]
[363086980,1748572253704,-151.0,0.0002,2]
[363086981,1748572253713,-445.22733109,0.0002,2]
[363086982,1748572253723,-151.0,0.0002,2]
[363086983,1748572253732,-430.0,0.0002,2]
[363086984,1748572253742,-444.79274708,0.0002,2]
[363086985,1748572253752,-430.0,0.0002,2]
[363086986,1748572253761,-521.07179917,0.0002,2]
[363086987,1748572253771,-2316.582909,0.0002,2]
[363086988,1748572253780,-590.03,0.0002,2]
[363086989,1748572253790,-666.58052126,0.0002,2]
[363086990,1748572254300,-300.0,0.00017999,2]
[363086991,1748572254311,-242.67091253,0.00019178,2]
[363086992,1748572254320,-430.0,0.00019178,2]
[363086993,1748572254330,-430.0,0.00019452,2]
[363086994,1748572254340,-430.0,0.00019726,2]
[363086995,1748572254349,-1650.00238774,0.0002,2]
[363086996,1748572254360,-430.0,0.0002,2]
[363086997,1748572254370,-439.45147197,0.0002,2]
[363086998,1748572254379,-544.75,0.0002,2]
[363086999,1748572254388,-1019.0,0.0002,2]
[363087000,1748572254399,-430.0,0.0002,2]
[363087001,1748572254408,-17.08775199,0.0002,2]
[363087007,1748572254529,-430.0,0.00019178,2]
[363087008,1748572254539,-430.0,0.00019178,2]
[363087010,1748572254548,-507.15727597,0.00019178,2]
[363087012,1748572254557,-430.0,0.00019178,2]
[363087013,1748572254569,-430.0,0.00019452,2]
[363087015,1748572254578,-430.0,0.00019452,2]
[363087017,1748572254587,-135.17873528,0.00019452,2]
[363087026,1748572255818,-500.0,0.00018,2]
[363087027,1748572255828,-1604.05129415,0.00018,2]
[363087028,1748572255837,-1604.05129415,0.00018,2]
[363087029,1748572255846,-500.0,0.00018,2]
[363087030,1748572255856,-1604.05129415,0.00018,2]
[363087031,1748572255865,-1604.05129415,0.00018,2]
[363087032,1748572255875,-171.56932072,0.00018,2]
[363087033,1748572255884,-1604.05129415,0.00018,2]
[363087034,1748572255893,-1604.05129415,0.00018,2]
[363087035,1748572255903,-1604.05129415,0.00018,2]
[363087036,1748572255912,-1604.05129415,0.00018,2]
[363087037,1748572256014,-1604.05129415,0.00018,2]
[363087038,1748572256023,-1604.05129415,0.00018,2]
[363087039,1748572256033,-1604.05129415,0.00018,2]
[363087040,1748572256043,-1604.05129415,0.00018,2]
[363087041,1748572256052,-1604.05129415,0.00018,2]
[363087042,1748572256061,-1604.05129415,0.00018,2]
[363087043,1748572256071,-1604.05129415,0.00018,2]
[363087044,1748572256080,-1604.05129415,0.00018,2]
[363087045,1748572256090,-500.0,0.00019178,2]
[363087046,1748572256099,-430.0,0.00019178,2]
[363087047,1748572256109,-500.0,0.00019178,2]
[363087048,1748572256119,-350.0,0.00019178,2]